[Event "*** Titled Tuesday Blitz"]
[Site "Chess.com"]
[Date "2020.11.24"]
[Round "11"]
[White "xberli"]
[Black "JoachimMouhamad"]
[Result "1-0"]
[WhiteElo "2594"]
[BlackElo "2475"]
[TimeControl "180+1"]
[EndTime "12:26:15 PST"]
[Termination "xberli won on time"]

1. d4 {[%clk 0:02:31.4]} 1... Nf6 {[%clk 0:02:59.6]} 2. c4 {[%clk 0:02:31.5]}
2... g6 {[%clk 0:02:59.5]} 3. Nc3 {[%clk 0:02:31.6]} 3... d5 {[%clk 0:03:00.2]}
4. Nf3 {[%clk 0:02:31]} 4... Bg7 {[%clk 0:02:59.9]} 5. h4 {[%clk 0:02:31.2]}
5... h6 {[%clk 0:02:57.8]} 6. h5 {[%clk 0:02:20.2]} 6... g5 {[%clk 0:02:58.1]}
7. cxd5 {[%clk 0:02:19.4]} 7... Nxd5 {[%clk 0:02:57.6]} 8. e4 {[%clk 0:02:20.3]}
8... Nxc3 {[%clk 0:02:56.9]} 9. bxc3 {[%clk 0:02:21.2]} 9... c5 {[%clk
0:02:57.5]} 10. Be3 {[%clk 0:02:20.3]} 10... Qa5 {[%clk 0:02:57]} 11. Qd2 {[%clk
0:02:17.4]} 11... Nc6 {[%clk 0:02:53]} 12. Rc1 {[%clk 0:02:13.3]} 12... cxd4
{[%clk 0:02:48.3]} 13. cxd4 {[%clk 0:02:08.1]} 13... Qxd2+ {[%clk 0:02:47.5]}
14. Kxd2 {[%clk 0:02:09]} 14... g4 {[%clk 0:02:42.9]} 15. d5 {[%clk 0:01:59.9]}
15... gxf3 {[%clk 0:02:37]} 16. dxc6 {[%clk 0:01:58.9]} 16... bxc6 {[%clk
0:02:16.3]} 17. gxf3 {[%clk 0:01:47.7]} 17... O-O {[%clk 0:02:05.4]} 18. Bc4
{[%clk 0:01:41.7]} 18... Rb8 {[%clk 0:02:03.8]} 19. Bb3 {[%clk 0:01:36.3]} 19...
Be6 {[%clk 0:02:00.7]} 20. Bxe6 {[%clk 0:01:21.5]} 20... fxe6 {[%clk 0:02:01.6]}
21. Rc2 {[%clk 0:01:18.7]} 21... Rxf3 {[%clk 0:01:58]} 22. Ke2 {[%clk
0:01:15.6]} 22... Rff8 {[%clk 0:01:53.3]} 23. Rhc1 {[%clk 0:01:12]} 23... Rb4
{[%clk 0:01:48.4]} 24. Rc4 {[%clk 0:01:06.7]} 24... Rb5 {[%clk 0:01:45.1]} 25.
Rxc6 {[%clk 0:01:04.5]} 25... Rxh5 {[%clk 0:01:45]} 26. Rxe6 {[%clk 0:01:03.7]}
26... Ra5 {[%clk 0:01:41.9]} 27. Rc2 {[%clk 0:01:01.6]} 27... h5 {[%clk
0:01:34.7]} 28. Rxe7 {[%clk 0:00:59.6]} 28... h4 {[%clk 0:01:35.2]} 29. f4
{[%clk 0:00:57]} 29... h3 {[%clk 0:01:23.4]} 30. Kf3 {[%clk 0:00:46.8]} 30...
Ra3 {[%clk 0:01:17]} 31. Rd7 {[%clk 0:00:46]} 31... Rf7 {[%clk 0:01:07.9]} 32.
Rd5 {[%clk 0:00:41.9]} 32... Bh6 {[%clk 0:00:58.4]} 33. Rf5 {[%clk 0:00:32.5]}
33... Rxf5 {[%clk 0:00:52.5]} 34. exf5 {[%clk 0:00:33.4]} 34... Bg7 {[%clk
0:00:46.2]} 35. Ke4 {[%clk 0:00:33]} 35... Ra4+ {[%clk 0:00:42]} 36. Kd5 {[%clk
0:00:32.8]} 36... Ra5+ {[%clk 0:00:38.9]} 37. Ke6 {[%clk 0:00:29.1]} 37... Ra6+
{[%clk 0:00:37.5]} 38. Kd5 {[%clk 0:00:25.4]} 38... Ra5+ {[%clk 0:00:37.5]} 39.
Ke6 {[%clk 0:00:21]} 39... Ra6+ {[%clk 0:00:35.5]} 40. Kd7 {[%clk 0:00:20.8]}
40... Ra3 {[%clk 0:00:26.1]} 41. Bc5 {[%clk 0:00:20.4]} 41... Rd3+ {[%clk
0:00:25.3]} 42. Ke6 {[%clk 0:00:20.2]} 42... Bh6 {[%clk 0:00:20.7]} 43. f6
{[%clk 0:00:19.8]} 43... Kh7 {[%clk 0:00:17]} 44. f7 {[%clk 0:00:19.7]} 44...
Rg3 {[%clk 0:00:14.9]} 45. Rh2 {[%clk 0:00:17.4]} 45... Rg6+ {[%clk 0:00:11.2]}
46. Kf5 {[%clk 0:00:17.3]} 46... Rg3 {[%clk 0:00:07.8]} 47. f8=Q {[%clk
0:00:17]} 47... Bxf8 {[%clk 0:00:07.9]} 48. Bxf8 {[%clk 0:00:17.8]} 48... Kg8
{[%clk 0:00:05.7]} 49. Be7 {[%clk 0:00:17.7]} 49... Kf7 {[%clk 0:00:05.9]} 50.
Bg5 {[%clk 0:00:17.5]} 50... Ra3 {[%clk 0:00:05.7]} 51. Kg4 {[%clk 0:00:16.7]}
51... Ke6 {[%clk 0:00:05.6]} 52. Rxh3 {[%clk 0:00:16.4]} 52... Rxa2 {[%clk
0:00:06.1]} 53. Rh7 {[%clk 0:00:16.2]} 53... a5 {[%clk 0:00:05.9]} 54. Re7+
{[%clk 0:00:15.8]} 54... Kd6 {[%clk 0:00:05.7]} 55. Re5 {[%clk 0:00:15.9]} 55...
Rg2+ {[%clk 0:00:05.1]} 56. Kf5 {[%clk 0:00:15.9]} 56... a4 {[%clk 0:00:03.7]}
57. Ra5 {[%clk 0:00:15.5]} 57... Ra2 {[%clk 0:00:04.1]} 58. Kg6 {[%clk
0:00:15.2]} 58... a3 {[%clk 0:00:03.9]} 59. f5 {[%clk 0:00:15.1]} 59... Kc6
{[%clk 0:00:03.7]} 60. f6 {[%clk 0:00:15.1]} 60... Kb6 {[%clk 0:00:04.3]} 61.
Ra4 {[%clk 0:00:14.9]} 61... Kb5 {[%clk 0:00:04.2]} 62. Ra8 {[%clk 0:00:14.7]}
62... Kb4 {[%clk 0:00:04.7]} 63. f7 {[%clk 0:00:14.8]} 63... Rf2 {[%clk
0:00:04.8]} 64. Bf6 {[%clk 0:00:15]} 64... a2 {[%clk 0:00:03.7]} 65. Rxa2 {[%clk
0:00:13.4]} 65... Rxa2 {[%clk 0:00:01.8]} 66. f8=Q+ {[%clk 0:00:13.6]} 66... Kb3
{[%clk 0:00:01.7]} 67. Qf7+ {[%clk 0:00:13.7]} 67... Ka3 {[%clk 0:00:01.6]} 68.
Be7+ {[%clk 0:00:13.3]} 68... Kb2 {[%clk 0:00:01.9]} 69. Qc4 {[%clk 0:00:12.8]}
69... Kb1 {[%clk 0:00:02.8]} 70. Bf6 {[%clk 0:00:12.5]} 70... Rc2 {[%clk
0:00:03.7]} 71. Qd3 {[%clk 0:00:12.3]} 71... Kc1 {[%clk 0:00:04]} 72. Qe3+
{[%clk 0:00:12.1]} 72... Kd1 {[%clk 0:00:04.2]} 73. Qf3+ {[%clk 0:00:11.9]}
73... Kd2 {[%clk 0:00:04.4]} 74. Bd4 {[%clk 0:00:11.9]} 74... Kc1 {[%clk
0:00:02.3]} 75. Qe3+ {[%clk 0:00:11.5]} 75... Kb1 {[%clk 0:00:02.2]} 76. Kf5
{[%clk 0:00:10.9]} 1-0

[Event "*** Titled Tuesday Blitz"]
[Site "Chess.com"]
[Date "2020.11.24"]
[Round "11"]
[White "Nadeev_Sergey"]
[Black "Hercog"]
[Result "1-0"]
[WhiteElo "2467"]
[BlackElo "2292"]
[TimeControl "180+1"]
[EndTime "12:26:15 PST"]
[Termination "Nadeev_Sergey won on time"]

1. d4 {[%clk 0:03:00.9]} 1... Nf6 {[%clk 0:02:59.4]} 2. Bf4 {[%clk 0:03:00.9]}
2... c5 {[%clk 0:02:58]} 3. c3 {[%clk 0:02:59.7]} 3... d6 {[%clk 0:02:43]} 4.
dxc5 {[%clk 0:02:55.2]} 4... dxc5 {[%clk 0:02:43]} 5. Qxd8+ {[%clk 0:02:54.3]}
5... Kxd8 {[%clk 0:02:43.1]} 6. Na3 {[%clk 0:02:51.9]} 6... Bd7 {[%clk
0:02:30.2]} 7. Nf3 {[%clk 0:02:50.9]} 7... Nc6 {[%clk 0:02:28]} 8. O-O-O {[%clk
0:02:47.3]} 8... h6 {[%clk 0:02:24.1]} 9. Nc4 {[%clk 0:02:42.2]} 9... g5 {[%clk
0:02:20.6]} 10. Be3 {[%clk 0:02:34.1]} 10... b6 {[%clk 0:02:09.6]} 11. Nfe5
{[%clk 0:02:33.4]} 11... Nxe5 {[%clk 0:02:03.7]} 12. Nxe5 {[%clk 0:02:33.2]}
12... Ke8 {[%clk 0:02:03]} 13. Nxd7 {[%clk 0:02:29.9]} 13... Nxd7 {[%clk
0:02:02.9]} 14. h4 {[%clk 0:02:22.2]} 14... g4 {[%clk 0:02:02.5]} 15. g3 {[%clk
0:02:21]} 15... Rc8 {[%clk 0:01:55.7]} 16. Bg2 {[%clk 0:02:01.8]} 16... e6
{[%clk 0:01:48.1]} 17. Bf4 {[%clk 0:01:53.5]} 17... Be7 {[%clk 0:01:45.9]} 18.
e4 {[%clk 0:01:52.6]} 18... Nf6 {[%clk 0:01:36.7]} 19. Rhe1 {[%clk 0:01:28.8]}
19... h5 {[%clk 0:01:20.2]} 20. c4 {[%clk 0:01:13.1]} 20... Nd7 {[%clk
0:01:12.9]} 21. e5 {[%clk 0:01:13]} 21... Rg8 {[%clk 0:01:04.4]} 22. Bb7 {[%clk
0:01:09.6]} 22... Rc7 {[%clk 0:01:03.3]} 23. Ba6 {[%clk 0:01:09.8]} 23... Nb8
{[%clk 0:00:58.5]} 24. Bb5+ {[%clk 0:01:08.8]} 24... Kf8 {[%clk 0:00:58.3]} 25.
Bh6+ {[%clk 0:01:04.6]} 25... Rg7 {[%clk 0:00:55.6]} 26. Re3 {[%clk 0:00:52.2]}
26... Kg8 {[%clk 0:00:54.1]} 27. Bxg7 {[%clk 0:00:51.8]} 27... Kxg7 {[%clk
0:00:54.3]} 28. Kc2 {[%clk 0:00:47.5]} 28... Kf8 {[%clk 0:00:52.3]} 29. f3
{[%clk 0:00:44.4]} 29... gxf3 {[%clk 0:00:49.7]} 30. Rxf3 {[%clk 0:00:45.3]}
30... Kg7 {[%clk 0:00:49.1]} 31. Rdf1 {[%clk 0:00:42.5]} 31... Bd8 {[%clk
0:00:46.4]} 32. Kd3 {[%clk 0:00:40.5]} 32... a6 {[%clk 0:00:46]} 33. Ba4 {[%clk
0:00:40.3]} 33... Rb7 {[%clk 0:00:42.7]} 34. Ke4 {[%clk 0:00:36.5]} 34... b5
{[%clk 0:00:42]} 35. cxb5 {[%clk 0:00:36.7]} 35... axb5 {[%clk 0:00:42.1]} 36.
Bd1 {[%clk 0:00:31]} 36... Nc6 {[%clk 0:00:41.3]} 37. R3f2 {[%clk 0:00:20.4]}
37... Kg6 {[%clk 0:00:37]} 38. g4 {[%clk 0:00:19.6]} 38... hxg4 {[%clk
0:00:35.5]} 39. Bxg4 {[%clk 0:00:20.5]} 39... Rd7 {[%clk 0:00:33.4]} 40. Rg2
{[%clk 0:00:20.4]} 40... Rd4+ {[%clk 0:00:26.4]} 41. Ke3 {[%clk 0:00:20.5]}
41... Nxe5 {[%clk 0:00:22.8]} 42. Bxe6+ {[%clk 0:00:20.2]} 42... Kh6 {[%clk
0:00:21.6]} 43. Bxf7 {[%clk 0:00:20.3]} 43... Bxh4 {[%clk 0:00:15.8]} 44. Rh1
{[%clk 0:00:19.6]} 44... Nxf7 {[%clk 0:00:14.6]} 45. Rgh2 {[%clk 0:00:19.8]}
45... Kh5 {[%clk 0:00:14.3]} 46. a3 {[%clk 0:00:19.6]} 46... Ne5 {[%clk
0:00:14.3]} 47. Rh3 {[%clk 0:00:18.2]} 47... Ng4+ {[%clk 0:00:12.8]} 48. Ke2
{[%clk 0:00:17.8]} 48... Re4+ {[%clk 0:00:10.8]} 49. Kd2 {[%clk 0:00:16]} 49...
Nf2 {[%clk 0:00:08.8]} 50. R3h2 {[%clk 0:00:14.2]} 50... Nxh1 {[%clk 0:00:08.4]}
51. Rxh1 {[%clk 0:00:14.3]} 51... Rf4 {[%clk 0:00:07.3]} 52. Rc1 {[%clk
0:00:13]} 52... Rf2+ {[%clk 0:00:06]} 53. Kd3 {[%clk 0:00:13.5]} 53... Rxb2
{[%clk 0:00:05.9]} 54. Rxc5+ {[%clk 0:00:13.6]} 54... Bg5 {[%clk 0:00:05.5]} 55.
Kc3 {[%clk 0:00:13.4]} 55... Rb1 {[%clk 0:00:04.6]} 56. Kc2 {[%clk 0:00:13.9]}
56... Ra1 {[%clk 0:00:03.5]} 57. Kb2 {[%clk 0:00:14.4]} 57... Re1 {[%clk
0:00:02.2]} 58. Rxb5 {[%clk 0:00:14.9]} 58... Kg6 {[%clk 0:00:02.1]} 59. a4
{[%clk 0:00:15]} 59... Bc1+ {[%clk 0:00:01.4]} 60. Kb3 {[%clk 0:00:15.2]} 60...
Bg5 {[%clk 0:00:01.4]} 61. a5 {[%clk 0:00:15.1]} 61... Ra1 {[%clk 0:00:01.5]}
62. Kb2 {[%clk 0:00:14.9]} 62... Re1 {[%clk 0:00:01.2]} 63. a6 {[%clk
0:00:14.6]} 63... Be3 {[%clk 0:00:01.2]} 64. Rb7 {[%clk 0:00:12.4]} 1-0

[Event "*** Titled Tuesday Blitz"]
[Site "Chess.com"]
[Date "2020.11.24"]
[Round "11"]
[White "xamax2000"]
[Black "Aradej"]
[Result "1/2-1/2"]
[WhiteElo "2640"]
[BlackElo "2473"]
[TimeControl "180+1"]
[EndTime "12:26:16 PST"]
[Termination "Game drawn by repetition"]

1. e4 {[%clk 0:01:31.7]} 1... d6 {[%clk 0:02:13.6]} 2. d4 {[%clk 0:01:30.3]}
2... Nf6 {[%clk 0:02:13.6]} 3. Bd3 {[%clk 0:01:31]} 3... e5 {[%clk 0:02:13.8]}
4. c3 {[%clk 0:01:31.5]} 4... Nc6 {[%clk 0:02:13.4]} 5. Nf3 {[%clk 0:01:31.6]}
5... Bg4 {[%clk 0:02:13]} 6. d5 {[%clk 0:01:29.1]} 6... Nb8 {[%clk 0:02:09.7]}
7. h3 {[%clk 0:01:29.1]} 7... Bc8 {[%clk 0:02:08.8]} 8. c4 {[%clk 0:01:27.9]}
8... Be7 {[%clk 0:02:08.9]} 9. Nc3 {[%clk 0:01:27.8]} 9... O-O {[%clk 0:02:09]}
10. Be3 {[%clk 0:01:27.3]} 10... a5 {[%clk 0:02:09.1]} 11. c5 {[%clk 0:01:23.8]}
11... c6 {[%clk 0:02:03]} 12. O-O {[%clk 0:01:08.3]} 12... cxd5 {[%clk
0:01:59.3]} 13. exd5 {[%clk 0:01:07.9]} 13... Na6 {[%clk 0:01:47.6]} 14. Re1
{[%clk 0:00:41]} 14... h6 {[%clk 0:01:40.9]} 15. Rc1 {[%clk 0:00:30]} 15... Nxc5
{[%clk 0:01:37.8]} 16. Bxc5 {[%clk 0:00:29.7]} 16... dxc5 {[%clk 0:01:37.3]} 17.
Nxe5 {[%clk 0:00:30.6]} 17... Bd6 {[%clk 0:01:36.7]} 18. Nc4 {[%clk 0:00:30.4]}
18... Re8 {[%clk 0:01:27.3]} 19. Qf3 {[%clk 0:00:28.3]} 19... Bf8 {[%clk
0:01:25.5]} 20. Nb5 {[%clk 0:00:15.4]} 20... Bd7 {[%clk 0:01:22.6]} 21. Rxe8
{[%clk 0:00:13.6]} 21... Bxe8 {[%clk 0:01:20.3]} 22. Nc3 {[%clk 0:00:12.5]}
22... b5 {[%clk 0:01:18.7]} 23. Ne5 {[%clk 0:00:12.5]} 23... c4 {[%clk
0:01:18.8]} 24. Be4 {[%clk 0:00:11.6]} 24... Bd6 {[%clk 0:01:09.9]} 25. Nc6
{[%clk 0:00:11.5]} 25... Qb6 {[%clk 0:01:06.3]} 26. Rd1 {[%clk 0:00:09.3]} 26...
Bd7 {[%clk 0:01:05.2]} 27. Bf5 {[%clk 0:00:07.8]} 27... Bxf5 {[%clk 0:01:02.1]}
28. Qxf5 {[%clk 0:00:08.7]} 28... Re8 {[%clk 0:01:02.2]} 29. Kf1 {[%clk
0:00:06.5]} 29... b4 {[%clk 0:00:58.4]} 30. Ne2 {[%clk 0:00:06.8]} 30... Qc5
{[%clk 0:00:55.6]} 31. Ned4 {[%clk 0:00:06.2]} 31... Bf8 {[%clk 0:00:53.7]} 32.
Qf3 {[%clk 0:00:03.1]} 32... Nxd5 {[%clk 0:00:50.6]} 33. Nf5 {[%clk 0:00:03.3]}
33... Nf6 {[%clk 0:00:50.4]} 34. Ncd4 {[%clk 0:00:02.7]} 34... c3 {[%clk
0:00:49.5]} 35. bxc3 {[%clk 0:00:03.6]} 35... bxc3 {[%clk 0:00:49.7]} 36. Rc1
{[%clk 0:00:04.5]} 36... Qc4+ {[%clk 0:00:47.2]} 37. Kg1 {[%clk 0:00:04.4]}
37... Nd5 {[%clk 0:00:47.8]} 38. Kh2 {[%clk 0:00:03.8]} 38... Qxa2 {[%clk
0:00:42.1]} 39. Rc2 {[%clk 0:00:01.9]} 39... Qc4 {[%clk 0:00:41.4]} 40. Qg4
{[%clk 0:00:02.3]} 40... g6 {[%clk 0:00:41.7]} 41. h4 {[%clk 0:00:02.7]} 41...
h5 {[%clk 0:00:41.6]} 42. Qg5 {[%clk 0:00:03.2]} 42... Qc7+ {[%clk 0:00:38.9]}
43. g3 {[%clk 0:00:03]} 43... Qe5 {[%clk 0:00:38.1]} 44. Ra2 {[%clk 0:00:03]}
44... Qf6 {[%clk 0:00:34]} 45. Qxf6 {[%clk 0:00:02.7]} 45... Nxf6 {[%clk
0:00:33.5]} 46. Ne3 {[%clk 0:00:03.6]} 46... Bb4 {[%clk 0:00:31.2]} 47. Ndc2
{[%clk 0:00:03.2]} 47... Ne4 {[%clk 0:00:29.7]} 48. Kg2 {[%clk 0:00:03.7]} 48...
Nc5 {[%clk 0:00:29.2]} 49. Kf1 {[%clk 0:00:03.7]} 49... Nd3 {[%clk 0:00:27.9]}
50. Ra1 {[%clk 0:00:03.2]} 50... Rc8 {[%clk 0:00:25.9]} 51. Ke2 {[%clk
0:00:03.5]} 51... Ne5 {[%clk 0:00:25.5]} 52. Nd5 {[%clk 0:00:03.6]} 52... Kg7
{[%clk 0:00:23.9]} 53. Ncxb4 {[%clk 0:00:03.2]} 53... axb4 {[%clk 0:00:24.1]}
54. Nxb4 {[%clk 0:00:04.1]} 54... Ng4 {[%clk 0:00:22.6]} 55. Nc2 {[%clk
0:00:04.1]} 55... Re8+ {[%clk 0:00:21.7]} 56. Kf1 {[%clk 0:00:04.3]} 56... Rd8
{[%clk 0:00:21.9]} 57. Ne3 {[%clk 0:00:02.5]} 57... Rd2 {[%clk 0:00:20.4]} 58.
Nxg4 {[%clk 0:00:02.5]} 58... hxg4 {[%clk 0:00:20.2]} 59. Rc1 {[%clk 0:00:03.4]}
59... Rd3 {[%clk 0:00:16.6]} 60. Ke2 {[%clk 0:00:03.8]} 60... Rf3 {[%clk
0:00:16.8]} 61. Rd1 {[%clk 0:00:02.7]} 61... Kf6 {[%clk 0:00:15.6]} 62. Rd3
{[%clk 0:00:03.2]} 62... Ke5 {[%clk 0:00:12.6]} 63. Rxf3 {[%clk 0:00:02.6]}
63... gxf3+ {[%clk 0:00:12.4]} 64. Kd3 {[%clk 0:00:03.3]} 64... c2 {[%clk
0:00:09.8]} 65. Kxc2 {[%clk 0:00:03.5]} 65... Kd4 {[%clk 0:00:10.1]} 66. Kd2
{[%clk 0:00:04]} 66... f5 {[%clk 0:00:10.3]} 67. Kc2 {[%clk 0:00:03.2]} 67...
Kc4 {[%clk 0:00:08.7]} 68. Kd2 {[%clk 0:00:03.2]} 68... Kd4 {[%clk 0:00:07.4]}
69. Kc2 {[%clk 0:00:03.6]} 69... Kc4 {[%clk 0:00:05.9]} 70. Kd2 {[%clk
0:00:03.8]} 70... Kd4 {[%clk 0:00:06.4]} 1/2-1/2

[Event "*** Titled Tuesday Blitz"]
[Site "Chess.com"]
[Date "2020.11.24"]
[Round "11"]
[White "Das_Virus_2020"]
[Black "A-S-00"]
[Result "0-1"]
[WhiteElo "2453"]
[BlackElo "2312"]
[TimeControl "180+1"]
[EndTime "12:26:16 PST"]
[Termination "A-S-00 won on time"]

1. e4 {[%clk 0:03:00.9]} 1... c5 {[%clk 0:02:58.4]} 2. Nc3 {[%clk 0:03:00.2]}
2... e6 {[%clk 0:02:57.2]} 3. f4 {[%clk 0:02:59.6]} 3... Nc6 {[%clk 0:02:57.6]}
4. Nf3 {[%clk 0:03:00]} 4... g6 {[%clk 0:02:57.8]} 5. Bc4 {[%clk 0:02:56.3]}
5... Bg7 {[%clk 0:02:57.2]} 6. f5 {[%clk 0:02:56.5]} 6... Nge7 {[%clk
0:02:55.1]} 7. fxe6 {[%clk 0:02:56]} 7... dxe6 {[%clk 0:02:47.6]} 8. d3 {[%clk
0:02:51.9]} 8... O-O {[%clk 0:02:47.2]} 9. O-O {[%clk 0:02:52.3]} 9... a6 {[%clk
0:02:46.7]} 10. a4 {[%clk 0:02:46.9]} 10... Rb8 {[%clk 0:02:43.4]} 11. Qe1
{[%clk 0:02:43.5]} 11... b6 {[%clk 0:02:10.8]} 12. Qh4 {[%clk 0:02:39.2]} 12...
Nb4 {[%clk 0:01:59.7]} 13. Bb3 {[%clk 0:02:34.2]} 13... Bb7 {[%clk 0:01:50.3]}
14. Bh6 {[%clk 0:02:21.1]} 14... Nec6 {[%clk 0:01:17.9]} 15. Ng5 {[%clk
0:01:51.9]} 15... Qd4+ {[%clk 0:01:11.1]} 16. Rf2 {[%clk 0:01:37.4]} 16... Bxh6
{[%clk 0:00:50.8]} 17. Qxh6 {[%clk 0:01:38.3]} 17... Qg7 {[%clk 0:00:50.7]} 18.
Qxg7+ {[%clk 0:00:59.9]} 18... Kxg7 {[%clk 0:00:49.5]} 19. Raf1 {[%clk
0:01:00.5]} 19... Ne5 {[%clk 0:00:46.2]} 20. Bxe6 {[%clk 0:00:53]} 20... f6
{[%clk 0:00:42.1]} 21. Nf3 {[%clk 0:00:47.5]} 21... Nbc6 {[%clk 0:00:25.1]} 22.
Bd5 {[%clk 0:00:44.3]} 22... Nxf3+ {[%clk 0:00:21]} 23. Rxf3 {[%clk 0:00:38.9]}
23... Nd4 {[%clk 0:00:21.1]} 24. R3f2 {[%clk 0:00:38.7]} 24... Bc8 {[%clk
0:00:17.2]} 25. Nd1 {[%clk 0:00:32.5]} 25... Bd7 {[%clk 0:00:15.3]} 26. c3
{[%clk 0:00:30.9]} 26... Nc6 {[%clk 0:00:14.4]} 27. Bb3 {[%clk 0:00:27.5]} 27...
Ne5 {[%clk 0:00:12.6]} 28. Rd2 {[%clk 0:00:25.4]} 28... c4 {[%clk 0:00:09.7]}
29. dxc4 {[%clk 0:00:21.2]} 29... Bc6 {[%clk 0:00:09.5]} 30. Ne3 {[%clk
0:00:19.9]} 30... Bxe4 {[%clk 0:00:09]} 31. Nd5 {[%clk 0:00:20]} 31... Bxd5
{[%clk 0:00:08.4]} 32. cxd5 {[%clk 0:00:19.1]} 32... Rbd8 {[%clk 0:00:08.3]} 33.
Rfd1 {[%clk 0:00:18.9]} 33... Rd6 {[%clk 0:00:07.9]} 34. h3 {[%clk 0:00:18.8]}
34... Re8 {[%clk 0:00:07.9]} 35. Ba2 {[%clk 0:00:17.8]} 35... b5 {[%clk
0:00:07.7]} 36. axb5 {[%clk 0:00:17]} 36... axb5 {[%clk 0:00:08]} 37. Bb3 {[%clk
0:00:15.6]} 37... Ra8 {[%clk 0:00:08.1]} 38. Rd4 {[%clk 0:00:15.1]} 38... Kf7
{[%clk 0:00:08]} 39. Rb4 {[%clk 0:00:14.5]} 39... Rb8 {[%clk 0:00:07.4]} 40. Kf2
{[%clk 0:00:14.3]} 40... Ke7 {[%clk 0:00:07.2]} 41. c4 {[%clk 0:00:13.2]} 41...
Ra8 {[%clk 0:00:04.5]} 42. c5 {[%clk 0:00:12.9]} 42... Rdd8 {[%clk 0:00:04.2]}
43. d6+ {[%clk 0:00:11.9]} 43... Kd7 {[%clk 0:00:04.4]} 44. Rxb5 {[%clk
0:00:08.1]} 44... Kc6 {[%clk 0:00:04.2]} 45. Rb4 {[%clk 0:00:03.9]} 45... Kxc5
{[%clk 0:00:04.3]} 46. Rbd4 {[%clk 0:00:03.8]} 46... Rab8 {[%clk 0:00:03.2]} 47.
Rd5+ {[%clk 0:00:02.5]} 47... Kc6 {[%clk 0:00:02.9]} 48. Ba4+ {[%clk 0:00:02.1]}
48... Kb7 {[%clk 0:00:02.3]} 49. b3 {[%clk 0:00:02.7]} 49... Ka7 {[%clk
0:00:02.2]} 50. R1d2 {[%clk 0:00:02.3]} 50... Rb6 {[%clk 0:00:02.3]} 51. d7
{[%clk 0:00:02.5]} 51... Rb7 {[%clk 0:00:02.2]} 52. Rd6 {[%clk 0:00:02.9]} 52...
Kb8 {[%clk 0:00:02.4]} 53. Rxf6 {[%clk 0:00:02.8]} 53... Nxd7 {[%clk 0:00:01.7]}
54. Rfd6 {[%clk 0:00:02.8]} 54... Rf8+ {[%clk 0:00:01.9]} 55. Kg3 {[%clk
0:00:02.4]} 55... Nc5 {[%clk 0:00:02.2]} 56. Rd8+ {[%clk 0:00:02.2]} 56... Rxd8
{[%clk 0:00:02.3]} 57. Rxd8+ {[%clk 0:00:03.1]} 57... Kc7 {[%clk 0:00:03.2]} 58.
Rd5 {[%clk 0:00:03.2]} 58... Nxa4 {[%clk 0:00:03.1]} 59. bxa4 {[%clk 0:00:04.1]}
59... Rb3+ {[%clk 0:00:03.2]} 60. Kf2 {[%clk 0:00:02.4]} 60... Kc6 {[%clk
0:00:03.4]} 61. Rd4 {[%clk 0:00:02.1]} 61... Rb2+ {[%clk 0:00:03.2]} 62. Kg3
{[%clk 0:00:01.3]} 62... Ra2 {[%clk 0:00:03.5]} 0-1